bitfinex-derivatives/quotes_SOLF0:USTF0_20251129
["timestamp","ask_amount","ask_price","bid_price","bid_amount"]
[1764398370606,6.5787,136.81,136.78,3.24]
[1764398371004,6.63319845,136.81,136.78,3.29263502]
[1764398371399,0.05449845,136.81,136.78,3.29263502]
[1764398371605,204.5668,136.88,136.8,3.24]
[1764398371606,5.62144105,136.84,136.8,3.24]
[1764398371804,5.62144105,136.84,136.73,111.47474318]
[1764398371805,5.62144105,136.86,136.82,3.24]
[1764398372001,102.2906,136.87,136.82,3.24]
[1764398372002,5.62144105,136.85,136.82,3.24]
[1764398372211,5.62144105,136.86,136.82,3.24]
[1764398372707,0.04612133,136.85,136.84,3.03]
[1764398377720,6.5757,136.87,136.84,3.03]
[1764398378913,6.62998049,136.87,136.84,3.03]
[1764398405729,0.05428049,136.87,136.84,3.03]
[1764398406037,136.24092807,136.94,136.84,3.03]
[1764398406038,1.97301246,136.93,136.84,3.03]
[1764398407037,0.04847006,136.9,136.88,3.07]
[1764398411440,0.04847006,136.9,136.87,3.11782565]
[1764398423148,0.04847006,136.9,136.87,9.69302565]
[1764398423451,0.04847006,136.9,136.88,2.99]
[1764398435565,0.04847006,136.9,136.88,9.5648]
[1764398435866,0.04847006,136.9,136.89,3.16]
[1764398436564,6.5723,136.94,136.89,3.16]
[1764398437263,6.5723,136.94,136.9,3.16]
[1764398437766,6.5723,136.94,136.92,3.16]
[1764398438361,6.5715,136.96,136.92,3.16]
[1764398439068,31.7305,136.98,136.92,3.16]
[1764398439458,6.5705,136.98,136.92,3.16]
[1764398440562,6.5705,136.98,136.92,4.42106563]
[1764398441273,6.5709,136.97,136.92,3.16]
[1764398441465,6.5709,136.97,136.93,1.31538062]
[1764398441666,6.5709,136.97,136.93,4.47538062]
[1764398442270,6.5709,136.97,136.94,3.16]
[1764398443475,6.5709,136.97,136.95,1.26106563]
[1764398443774,6.5709,136.97,136.95,4.42106563]
[1764398445774,6.5691,137.01,136.96,3.16]
[1764398445966,6.5691,137.01,136.97,4.46952845]
[1764398446168,6.5691,137.01,136.98,3.16]
[1764398446768,6.5678,137.03,137.0,3.16]
[1764398446977,6.5678,137.03,137.0,3.20761813]
[1764398450580,6.5678,137.03,137.0,0.04761813]
[1764398452884,6.5678,137.03,137.0,3.20761813]
[1764398453079,6.5678,137.03,137.0,0.04761813]
[1764398458991,6.5678,137.03,137.0,3.20761813]
[1764398461190,6.5697,137.0,136.93,9.7325]
[1764398461389,1.26106563,137.0,136.93,3.16]
[1764398461594,1.26106563,137.0,136.94,4.42106563]
[1764398461795,103.44296563,137.01,136.94,4.42106563]
[1764398462189,6.61751813,136.99,136.94,4.42106563]
[1764398462497,6.61751813,136.99,136.96,0.05261784]
[1764398465792,6.5706,136.98,136.96,0.05261784]
[1764398470298,6.5706,136.98,136.96,3.33261784]
[1764398470893,6.5706,136.98,136.96,0.05261784]
[1764398476907,0.04761813,136.99,136.96,0.05261784]
[1764398477402,0.04761813,136.99,136.96,3.33261784]
[1764398478611,0.04761813,136.99,136.96,0.05261784]
[1764398481003,0.04761813,136.99,136.96,3.33261784]
[1764398481309,0.04761813,136.99,136.97,3.28]
[1764398492921,6.61761813,136.99,136.96,0.05261784]
[1764398493113,0.04761813,136.99,136.96,0.05261784]
[1764398493812,6.5705,136.98,136.96,0.05261784]
[1764398498512,6.5705,136.98,136.96,3.11261784]
[1764398504229,0.04761813,136.99,136.96,3.11261784]
[1764398511939,6.61751813,136.99,136.96,3.11261784]
[1764398531158,0.04761813,136.99,136.96,3.11261784]
[1764398535358,0.04761813,136.99,136.96,5.08252256]
[1764398535653,0.04761813,136.99,136.97,3.0]
[1764398542069,0.04761813,136.99,136.96,3.05261784]
[1764398543262,0.04761813,136.99,136.96,0.05261784]
[1764398544063,6.5702,136.98,136.96,0.05261784]
[1764398544564,6.5702,136.98,136.96,3.18261784]
[1764398559279,0.04761813,136.99,136.96,3.18261784]
[1764398562582,0.04761813,136.99,136.96,4.44309281]
[1764398562773,0.04761813,136.99,136.97,3.01]
[1764398585198,6.5702,136.98,136.96,3.30261784]
[1764398589001,6.5702,136.98,136.96,0.05261784]
[1764398589207,6.5702,136.98,136.96,3.30261784]
[1764398609225,6.5702,136.98,136.97,3.09]
[1764398609829,0.04761813,136.99,136.97,3.09]
[1764398610331,0.04761813,136.99,136.98,4.35047497]
[1764398620231,6.569,137.01,136.99,3.3]
[1764398622535,31.6081,137.03,136.99,3.3]
[1764398622834,31.6081,137.03,137.01,3.3]
[1764398623033,6.5681,137.03,137.01,3.3]
[1764398623732,6.5681,137.03,137.0,3.34658037]
[1764398624437,6.5686,137.02,137.0,3.34658037]
[1764398636547,6.5686,137.02,137.0,0.04658037]
[1764398637355,6.5686,137.02,137.0,3.34658037]
[1764398637556,102.1522,137.05,137.0,3.34658037]
[1764398638053,6.5684,137.02,137.0,3.34658037]
[1764398639255,6.5684,137.02,137.0,0.04658037]
[1764398643754,31.5884,137.02,137.0,0.04658037]
[1764398644058,31.5884,137.02,136.96,2.99]
[1764398644059,6.5702,136.98,136.96,2.99]
[1764398645051,6.61678037,136.98,136.96,3.04345559]
[1764398656462,0.04658037,136.98,136.96,3.04345559]
[1764398672691,0.04658037,136.98,136.96,5.01254351]
[1764398672987,0.04658037,136.98,136.97,2.99]
[1764398677079,6.61688037,136.98,136.96,9.86555523]
[1764398677283,6.61688037,136.98,136.97,2.99]
[1764398677284,0.04658037,136.98,136.97,2.99]
[1764398678690,0.04658037,136.98,136.96,0.05345559]
[1764398678887,6.61708037,136.98,136.96,3.04345559]
[1764398694306,0.04658037,136.98,136.96,3.04345559]
[1764398699509,0.04658037,136.98,136.97,4.25078777]
[1764398705420,6.5681,137.03,136.98,3.29]
[1764398705717,6.5681,137.03,137.0,3.29]
[1764398706317,6.5681,137.03,137.0,3.33884652]
[1764398708518,6.5681,137.03,137.02,3.29]
[1764398710318,31.5671,137.05,137.02,3.29]
[1764398710515,9.07869806,137.09,137.02,3.29]
[1764398710717,6.5656,137.08,137.05,3.29]
[1764398712322,26.26078777,137.1,137.05,3.29]
[1764398713421,6.5651,137.09,137.05,3.29]
[1764398719528,102.1296,137.08,137.04,0.04609996]
[1764398719919,102.1296,137.08,137.04,3.33609996]
[1764398720426,6.5665,137.06,137.04,3.33609996]
[1764398723036,6.5665,137.06,137.04,0.04609996]
[1764398723533,6.5684,137.02,137.0,3.08]
[1764398723736,6.5684,137.02,136.99,4.34078777]
[1764398724430,6.5684,137.02,136.99,3.08]
[1764398724630,6.61449996,137.02,136.99,3.12854528]
[1764398725242,6.569,137.01,136.99,3.12854528]
[1764398731036,0.04609996,137.02,136.99,3.12854528]
[1764398731332,0.04609996,137.02,136.99,0.04854528]
[1764398731736,25.02609996,137.02,136.99,0.04854528]
[1764398732138,6.569,137.01,136.99,0.04854528]
[1764398734130,7.82978777,137.01,136.99,0.04854528]
[1764398734836,6.569,137.01,136.99,0.04854528]
[1764398735042,7.82978777,137.01,136.99,0.04854528]
[1764398737546,6.5701,136.99,136.95,3.11]
[1764398737738,31.5501,136.99,136.94,3.11]
[1764398738545,0.04916504,136.98,136.95,3.16211885]
[1764398739641,6.61956504,136.98,136.95,3.16211885]
[1764398739940,0.04916504,136.98,136.95,0.05211885]
[1764398740153,0.04916504,136.98,136.95,3.16211885]
[1764398740839,6.5708,136.97,136.95,3.16211885]
[1764398743538,6.5708,136.97,136.95,0.05211885]
[1764398748150,7.83158777,136.97,136.95,0.05211885]
[1764398748551,6.5708,136.97,136.95,0.05211885]
[1764398752255,24.98,136.96,136.95,0.05211885]
[1764398760865,24.98,136.96,136.95,3.16211885]
[1764398763561,24.98,136.96,136.95,0.05211885]
[1764398763767,24.98,136.96,136.95,3.22211885]
[1764398764265,24.98,136.96,136.95,0.05211885]
[1764398774572,24.98,136.96,136.95,3.22211885]
[1764398780079,6.5708,136.97,136.95,3.22211885]
[1764398794794,6.61956504,136.98,136.95,3.22211885]
[1764398794988,0.04916504,136.98,136.95,3.22211885]
[1764398796989,0.04916504,136.98,136.95,10.01173955]
[1764398797186,0.04916504,136.98,136.97,3.04]
[1764398824020,0.04916504,136.98,136.97,4.30040011]
[1764398833332,0.04916504,136.98,136.97,11.09002081]
[1764398834130,0.04916504,136.98,136.97,9.8296207]
[1764398834330,0.04916504,136.98,136.97,11.09002081]
[1764398835634,0.04916504,136.98,136.97,9.8296207]
[1764398835933,0.04916504,136.98,136.97,11.09002081]
[1764398837924,0.04916504,136.98,136.97,3.04]
[1764398838535,0.04916504,136.98,136.96,6.7896207]
[1764398838735,0.04916504,136.98,136.96,9.9396207]
[1764398839745,0.04916504,136.98,136.95,6.84173955]
[1764398839928,0.04916504,136.98,136.95,3.20211885]
[1764398841435,6.5711,136.97,136.95,3.20211885]
[1764398848746,6.5711,136.97,136.95,0.05211885]
[1764398851046,6.5718,136.95,136.92,10.0696207]
[1764398851246,6.5718,136.95,136.92,3.28]
[1764398851941,6.62667987,136.95,136.92,3.33301517]
[1764398859359,6.62667987,136.95,136.92,0.05301517]
[1764398860159,6.62667987,136.95,136.92,3.30301517]
[1764398860360,6.62667987,136.95,136.92,0.05301517]
[1764398861461,6.62667987,136.95,136.92,3.30301517]
[1764398883772,6.5723,136.94,136.92,0.05301517]
[1764398888583,6.5734,136.92,136.89,6.7896207]
[1764398888776,6.5734,136.92,136.89,3.22]
[1764398889690,6.61957083,136.92,136.89,3.27018347]
[1764398891484,6.5737,136.91,136.89,3.27018347]
[1764398896486,6.5737,136.91,136.89,0.05018347]
[1764398897793,6.5737,136.91,136.89,3.27018347]
[1764398899395,0.04617083,136.92,136.89,5.2411473]
[1764398899701,0.04617083,136.92,136.91,3.22]
[1764398904200,0.04617083,136.92,136.91,5.19096383]
[1764398905495,31.5308,136.97,136.92,3.16]
[1764398905701,6.5708,136.97,136.94,3.16]
[1764398906603,6.61818154,136.97,136.94,3.21199631]
[1764398906896,13.52619944,137.06,136.96,3.16]
[1764398907095,102.1412,137.07,137.0,9.98633805]
[1764398907288,102.1412,137.07,137.0,3.16]
[1764398907689,6.5673,137.05,137.0,3.16]
[1764398907890,6.5673,137.05,137.01,0.05437488]
[1764398908103,0.04623049,137.04,137.01,0.05437488]
[1764398908901,6.5678,137.03,137.01,0.05437488]
[1764398909406,6.5678,137.03,137.01,3.21437488]
[1764398909604,6.5678,137.03,137.01,0.05437488]
[1764398913296,24.94,137.02,137.01,0.05437488]
[1764398916610,6.5691,137.01,136.96,3.21]
[1764398916911,127.1183,137.02,136.96,3.21]
[1764398917211,6.57,136.99,136.94,3.21]
[1764398917403,24.94,136.98,136.94,3.21]
[1764398917605,0.04909152,136.97,136.95,3.26344636]
[1764398930114,6.61979152,136.97,136.95,0.05344636]
[1764398932915,102.2188,136.96,136.92,3.21]
[1764398933824,102.2188,136.96,136.93,0.05184552]
[1764398934420,6.5724,136.94,136.93,3.26184552]
[1764398935218,6.5724,136.94,136.93,0.05184552]
[1764398938927,102.26379152,136.97,136.93,0.05184552]
[1764398939129,103.52511081,136.97,136.93,0.05184552]
[1764398940428,6.5718,136.95,136.93,0.05184552]
[1764398940629,6.5718,136.95,136.93,3.26184552]
[1764398942132,0.04909152,136.97,136.93,4.52316481]
[1764398942435,0.04909152,136.97,136.94,3.21]
[1764398947545,0.04909152,136.97,136.96,3.22]
[1764398949231,0.04909152,136.97,136.95,3.22]
[1764398950444,0.04909152,136.97,136.96,3.22]
[1764398952643,24.94,137.02,136.97,3.22]
[1764398953341,6.569,137.01,136.97,3.22]
[1764398953542,0.05294532,137.0,136.98,3.26863645]
[1764398956138,0.05294532,137.0,136.98,4.52995574]
[1764398956335,0.05294532,137.0,136.99,3.22]
[1764398960045,6.5676,137.04,136.99,3.22]
[1764398960250,6.5676,137.04,137.02,3.22]
[1764398960852,6.62116779,137.04,137.02,3.27327923]
[1764398961951,0.05356779,137.04,137.02,3.27327923]
[1764398966849,6.62136779,137.04,137.02,0.05327923]
[1764398968255,7.88268708,137.04,137.02,0.05327923]
[1764398970941,6.5693,137.0,136.97,3.06]
[1764398971957,6.61862705,137.0,136.97,3.11412407]
[1764398975054,6.5699,136.99,136.97,0.05412407]
[1764398975656,6.5699,136.99,136.97,3.21412407]
[1764398980666,7.83121929,136.99,136.97,0.05412407]
[1764398982062,102.2068,136.98,136.93,3.16]
[1764398982261,26.20131929,136.97,136.93,3.16]
[1764398983172,0.04974532,136.96,136.94,0.04948496]
[1764398983470,6.62124532,136.96,136.94,0.04948496]
[1764398992773,0.04974532,136.96,136.94,3.20948496]
[1764399012288,0.04974532,136.96,136.94,0.04948496]
[1764399013388,6.62114532,136.96,136.94,0.04948496]
[1764399013592,33.53210319,136.96,136.94,0.04948496]
[1764399013793,31.56114532,136.96,136.94,3.03948496]
[1764399016696,31.56114532,136.96,136.94,0.04948496]
[1764399024303,6.5725,136.94,136.9,9.84359012]
[1764399024502,24.94,136.93,136.9,3.04]
[1764399025502,31.55919241,136.93,136.9,3.09239456]
[1764399030202,24.98639241,136.93,136.9,3.09239456]
[1764399031803,24.98639241,136.93,136.91,3.04]
[1764399051419,0.04639241,136.93,136.91,5.01095787]
[1764399051624,0.04639241,136.93,136.92,3.26]
[1764399052524,0.04639241,136.93,136.92,4.52117335]
[1764399053412,0.04639241,136.93,136.91,10.06359012]
[1764399053613,0.04639241,136.93,136.91,3.26]
[1764399056325,0.04639241,136.93,136.91,10.09127877]
[1764399056529,0.04639241,136.93,136.92,3.26]
[1764399061528,0.04639241,136.93,136.91,10.09127877]
[1764399061733,0.04639241,136.93,136.9,11.40484668]
[1764399062628,0.04639241,136.93,136.9,6.88367333]
[1764399062832,1.30756576,136.93,136.9,0.05239456]
[1764399063227,6.5734,136.92,136.9,3.10239456]
[1764399064636,6.5734,136.92,136.9,0.05239456]
[1764399067543,6.5734,136.92,136.87,6.83127877]
[1764399067841,6.574,136.9,136.87,4.31117335]
[1764399068043,6.574,136.9,136.88,3.05]
[1764399068241,6.574,136.9,136.87,4.31117335]
[1764399068443,6.574,136.9,136.88,3.05]
[1764399068632,6.62713155,136.9,136.88,3.09731296]
[1764399070142,0.05313155,136.9,136.88,3.09731296]
[1764399071338,0.05313155,136.9,136.88,0.04731296]
[1764399072347,0.05313155,136.9,136.88,3.09731296]
[1764399073550,0.05313155,136.9,136.88,0.04731296]
[1764399075247,0.05313155,136.9,136.88,3.09731296]
[1764399075453,0.05313155,136.9,136.89,4.31117335]
[1764399075643,0.05313155,136.9,136.89,3.05]
[1764399075839,0.05313155,136.9,136.88,11.18976508]
[1764399076653,0.05313155,136.9,136.89,3.05]
[1764399078547,0.05313155,136.9,136.88,8.13976508]
[1764399078747,0.05313155,136.9,136.88,4.29848631]
[1764399081447,0.05313155,136.9,136.88,3.03731296]
[1764399083557,6.62743155,136.9,136.88,3.03731296]
[1764399085156,6.62743155,136.9,136.88,0.04731296]
[1764399085352,6.62743155,136.9,136.88,3.03731296]
[1764399087559,6.62743155,136.9,136.88,0.04731296]
[1764399087952,31.56743155,136.9,136.88,0.04731296]
[1764399089055,31.56743155,136.9,136.84,1.26117335]
[1764399089259,31.56743155,136.9,136.84,4.25117335]
[1764399089965,7.83607335,136.89,136.86,0.05079624]
[1764399090962,108.8554,136.88,136.83,6.83127877]
[1764399091160,108.8554,136.88,136.83,2.99]
[1764399091161,1.26117335,136.87,136.83,2.99]
[1764399091462,1.26117335,136.87,136.79,6.83127877]
[1764399091463,133.8103,136.86,136.8,2.99]
[1764399091665,133.8103,136.86,136.79,6.83127877]
[1764399091666,31.5161,136.86,136.82,2.99]
[1764399092160,0.05214174,136.85,136.83,0.04640594]
[1764399092556,0.05214174,136.85,136.83,3.03640594]
[1764399094263,0.05214174,136.85,136.84,2.99]
[1764399103474,0.05214174,136.85,136.84,4.25117335]
[1764399108075,0.05214174,136.85,136.84,2.99]
[1764399122587,0.05214174,136.85,136.83,3.06640594]
[1764399122896,0.05214174,136.85,136.83,0.04640594]
[1764399123286,6.62874174,136.85,136.83,3.06640594]
[1764399129098,31.56874174,136.85,136.83,0.04640594]
[1764399129984,6.5776,136.83,136.8,9.85127877]
[1764399130192,6.5776,136.83,136.81,3.02]
[1764399131190,6.62757707,136.83,136.81,3.07430428]
[1764399132894,6.62757707,136.83,136.81,0.05430428]
[1764399137701,24.94,136.82,136.81,0.05430428]
[1764399140005,6.5784,136.81,136.78,3.02]
[1764399140990,6.5784,136.81,136.78,3.06733889]
[1764399141203,6.5784,136.81,136.78,0.04733889]
[1764399141596,6.5784,136.81,136.78,3.06733889]
[1764399146306,6.5784,136.81,136.79,3.27]
[1764399150206,24.94,136.82,136.79,3.27]
[1764399152113,31.518,136.82,136.79,3.27]
[1764399153526,24.94,136.82,136.79,3.27]
[1764399159126,6.62757707,136.83,136.79,3.27]
[1764399170228,0.04997707,136.83,136.79,3.27]
[1764399170530,0.04997707,136.83,136.81,3.19]
[1764399175333,0.04997707,136.83,136.8,3.19]
[1764399176542,0.04997707,136.83,136.8,4.45347926]
[1764399177439,0.04997707,136.83,136.81,3.19]
[1764399179837,0.04997707,136.83,136.82,3.19]
[1764399197753,24.96,136.86,136.82,3.19]
[1764399198053,24.96,136.86,136.85,3.31]
[1764399200952,6.62427816,136.87,136.85,3.31]
[1764399202760,6.62427816,136.87,136.84,0.05243647]
[1764399202950,6.62427816,136.87,136.84,3.30243647]
[1764399204252,6.62427816,136.87,136.85,3.25]
[1764399215670,0.04847816,136.87,136.85,3.25]
[1764399216371,9.01746629,136.93,136.86,1.26347926]
[1764399216576,103.48517926,136.96,136.9,1.26347926]
[1764399217468,6.61851884,136.94,136.92,0.04807109]
[1764399220475,6.61851884,136.94,136.92,3.18807109]
[1764399220871,6.61851884,136.94,136.92,4.45155035]
[1764399224799,0.04611884,136.94,136.93,3.14]
[1764399234598,0.04611884,136.94,136.92,1.31155035]
[1764399234805,0.04611884,136.94,136.92,4.45155035]
[1764399238104,0.04611884,136.94,136.93,3.14]
[1764399245407,31.5109,136.97,136.93,3.14]
[1764399246406,0.04894224,136.96,136.93,3.14]
[1764399276130,6.62024224,136.96,136.93,3.14]
[1764399276333,0.04894224,136.96,136.92,3.12807109]
[1764399277427,6.5718,136.95,136.92,3.12807109]
[1764399278435,0.04894224,136.96,136.93,3.08]
[1764399289347,6.5718,136.95,136.93,3.08]
[1764399289546,6.5718,136.95,136.92,6.88820945]
[1764399289848,6.5718,136.95,136.93,3.08]
[1764399291238,0.04894224,136.96,136.93,3.08]
[1764399292545,6.62024224,136.96,136.93,3.08]
[1764399297844,6.572,136.95,136.93,3.08]
[1764399303050,0.04894224,136.96,136.93,4.34125697]
[1764399303255,0.04894224,136.96,136.94,2.99]
[1764399307559,6.62044224,136.96,136.92,0.04807109]
[1764399307756,6.62044224,136.96,136.93,2.99]
[1764399319774,0.04894224,136.96,136.93,4.25125697]
[1764399319976,0.04894224,136.96,136.94,3.1]
[1764399329388,0.04894224,136.96,136.95,1.26125697]
[1764399329589,0.04894224,136.96,136.95,4.36125697]
[1764399332091,0.04894224,136.96,136.95,3.1]
[1764399336900,0.04894224,136.96,136.95,4.36125697]
[1764399357906,0.04894224,136.96,136.95,3.1]
[1764399361003,24.94,136.97,136.95,3.1]
[1764399362112,24.98951697,136.97,136.95,3.1]
[1764399362297,0.04951697,136.97,136.95,9.94013836]
[1764399362598,0.04951697,136.97,136.96,3.11]
[1764399363810,31.4892,137.01,136.96,3.11]
[1764399364105,31.4892,137.01,136.97,3.11]
[1764399364311,31.4892,137.01,136.98,3.11]
[1764399364812,31.4892,137.01,136.98,3.16450836]
[1764399365004,31.54448548,137.01,136.98,3.16450836]
[1764399365608,24.97528548,137.01,136.98,3.16450836]
[1764399365808,24.97528548,137.01,136.99,3.11]
[1764399366107,0.05528548,137.01,136.99,3.11]
[1764399366308,127.0668,137.06,136.99,3.11]
[1764399367318,0.04935139,137.04,137.02,3.11]
[1764399372713,24.92,137.06,137.02,3.11]
[1764399373115,6.5651,137.09,137.04,3.11]
[1764399373816,0.05158319,137.08,137.06,3.11]
[1764399380611,6.61728319,137.08,137.06,3.11]
[1764399389430,0.05158319,137.08,137.06,3.11]
[1764399420955,0.05158319,137.08,137.06,5.07994626]
[1764399421157,0.05158319,137.08,137.07,3.05]
[1764399422258,0.05158319,137.08,137.06,3.2]
[1764399427257,6.61698319,137.08,137.05,3.25293013]
[1764399430760,0.05158319,137.08,137.07,3.2]
[1764399433356,6.5638,137.12,137.07,3.2]
[1764399433556,6.5638,137.12,137.1,3.2]
[1764399434275,6.61703559,137.12,137.1,3.24835477]
[1764399434968,0.05323559,137.12,137.1,3.24835477]
[1764399438869,0.05323559,137.12,137.11,4.45887342]
[1764399449978,6.5612,137.17,137.12,3.24]
[1764399450173,6.5612,137.17,137.15,4.49887342]
[1764399451066,6.611242,137.17,137.15,4.54923802]
[1764399451267,6.611242,137.17,137.15,3.2903646]
[1764399455181,6.611242,137.17,137.15,0.0503646]
[1764399463782,6.611242,137.17,137.15,3.3103646]
[1764399465885,0.050042,137.17,137.15,3.3103646]
[1764399467585,6.5604,137.19,137.15,3.3103646]
[1764399469486,6.5593,137.21,137.15,3.3103646]
[1764399470787,6.5593,137.21,137.17,3.26]
[1764399471290,1.25887342,137.22,137.17,3.26]
[1764399471590,1.25887342,137.22,137.19,3.26]
[1764399472391,1.25887342,137.22,137.18,0.05301034]
[1764399472587,1.25887342,137.22,137.18,3.31301034]
[1764399472886,1.25887342,137.2,137.18,0.05301034]
[1764399475287,7.81867342,137.2,137.18,0.05301034]
[1764399476386,7.81777342,137.22,137.18,0.05301034]
[1764399476888,7.81777342,137.22,137.18,3.31301034]
[1764399481394,6.5594,137.21,137.18,0.05301034]
[1764399481896,1.25887342,137.2,137.18,0.05301034]
[1764399483592,24.86,137.19,137.18,0.05301034]
[1764399483896,26.11887342,137.19,137.18,0.05301034]
[1764399484698,24.86,137.19,137.18,0.05301034]
[1764399487200,24.86,137.19,137.18,3.18301034]
[1764399488900,24.86,137.19,137.18,0.05301034]
[1764399491402,24.86,137.19,137.18,3.18301034]
[1764399494102,24.86,137.19,137.18,0.05301034]
[1764399527731,24.86,137.19,137.16,6.82294448]
[1764399527732,6.5606,137.18,137.16,6.82294448]
[1764399527933,6.5606,137.18,137.14,9.83294448]
[1764399528833,6.5606,137.18,137.15,0.05013422]
[1764399529226,4.99918476,137.17,137.15,0.05013422]
[1764399529537,4.99918476,137.16,137.15,0.05013422]
[1764399530328,6.61026034,137.17,137.15,0.05013422]
[1764399542146,24.86,137.16,137.15,0.05013422]
[1764399552042,6.5622,137.15,137.11,3.16]
[1764399552940,6.5622,137.15,137.12,0.05544975]
[1764399553137,6.5622,137.15,137.12,3.21544975]
[1764399562259,6.5622,137.15,137.12,0.05544975]
[1764399562659,7.81971639,137.15,137.12,0.05544975]
[1764399563962,6.563,137.14,137.12,0.05544975]
[1764399570061,6.5641,137.11,137.08,2.98]
[1764399570264,24.86,137.1,137.08,2.98]
[1764399571064,24.91551359,137.1,137.08,3.02963558]
[1764399572163,31.48011359,137.1,137.08,3.02963558]
[1764399572368,31.48011359,137.1,137.08,0.04963558]
[1764399590883,0.05551359,137.1,137.09,4.46751639]
[1764399591081,0.05551359,137.1,137.09,3.21]
[1764399607290,6.5638,137.12,137.09,3.21]
[1764399607491,6.5638,137.12,137.1,1.25751639]
[1764399607695,6.5638,137.12,137.11,3.17]
[1764399608089,6.5638,137.12,137.09,3.17]
[1764399608293,6.61947295,137.12,137.09,3.17]
[1764399609593,6.61947295,137.12,137.1,3.17]
[1764399610180,0.05567295,137.12,137.1,3.17]
[1764399627799,6.61927295,137.12,137.1,3.17]
[1764399630201,6.61927295,137.12,137.08,0.04963558]
[1764399630503,6.5641,137.11,137.08,3.18963558]
[1764399632395,6.5645,137.1,137.08,0.04963558]
[1764399632596,24.86,137.09,137.08,0.04963558]
[1764399635700,6.5645,137.1,137.08,3.24963558]
[1764399635900,24.86,137.09,137.08,3.24963558]
[1764399644911,6.61927295,137.12,137.08,3.24963558]
[1764399645209,31.49927295,137.12,137.09,3.2]
[1764399646317,24.93567295,137.12,137.09,3.2]
[1764399648913,24.93567295,137.12,137.11,3.2]
[1764399653520,0.05567295,137.12,137.11,3.2]
[1764399668741,0.05567295,137.12,137.11,4.45785375]
[1764399671047,0.05567295,137.12,137.1,9.96359475]
[1764399671241,0.05567295,137.12,137.11,3.14]
[1764399679648,0.05567295,137.12,137.11,4.39785375]
[1764399680543,0.05567295,137.12,137.11,3.14]
[1764399688260,0.05567295,137.12,137.11,9.95352871]
[1764399689157,0.05567295,137.12,137.11,3.14]
[1764399692261,0.05567295,137.12,137.11,9.95352871]
[1764399693059,1.3135267,137.12,137.1,6.81352871]
[1764399693669,7.8772267,137.12,137.09,9.95352871]
[1764399694370,6.61937295,137.12,137.09,9.95352871]
[1764399694868,6.61937295,137.12,137.1,3.14]
[1764399696767,6.61937295,137.12,137.09,9.95352871]
[1764399696970,6.5643,137.11,137.09,9.95352871]
[1764399697169,6.5643,137.11,137.09,3.14]
[1764399698067,24.86,137.1,137.09,3.14]
[1764399699670,31.4246,137.1,137.08,10.00316429]
[1764399701472,31.4246,137.1,137.08,3.18963558]
[1764399708778,24.86,137.1,137.08,3.18963558]
[1764399709275,24.86,137.11,137.09,3.14]
[1764399713375,26.11785375,137.11,137.08,0.04963558]
[1764399713776,6.5648,137.1,137.08,0.04963558]
[1764399715677,24.86,137.09,137.08,0.04963558]
[1764399722491,6.5642,137.11,137.08,3.31963558]
[1764399722697,6.5642,137.11,137.1,3.27]
[1764399723095,0.05567295,137.12,137.1,3.27]
[1764399723293,0.05567295,137.12,137.11,4.52785375]
[1764399730001,6.5609,137.18,137.12,3.27]
[1764399730302,24.86,137.17,137.15,3.27]
[1764399731103,24.91425084,137.17,137.15,3.32490314]
[1764399735013,0.05425084,137.17,137.15,3.32490314]
[1764399738201,0.05425084,137.17,137.15,5.28931514]
[1764399739607,0.05425084,137.17,137.16,3.3]
[1764399742299,6.5595,137.21,137.16,3.3]
[1764399742609,31.4195,137.21,137.18,3.3]
[1764399743413,31.4195,137.21,137.18,0.046187]
[1764399743824,6.5599,137.2,137.18,0.046187]
[1764399764125,24.86,137.19,137.18,3.046187]
[1764399781929,24.86,137.19,137.18,0.046187]
[1764399784233,24.86,137.19,137.18,3.206187]
[1764399787836,24.86,137.19,137.18,0.046187]
[1764399801646,6.559,137.22,137.18,3.036187]
[1764399801952,6.559,137.22,137.2,2.99]
[1764399802146,6.559,137.22,137.19,1.25683]
[1764399802445,6.559,137.22,137.19,4.24683]
[1764399806052,6.559,137.22,137.21,1.25683]